[Event "January 2 Late 2024"]
[Site "https://www.chess.com"]
[Date "2024.01.02"]
[Round "4"]
[White "Czarnota, Pawel"]
[Black "Sarana, Alexey"]
[Result "0-1"]
[Board "14"]
[TimeControl "180+1"]
[WhiteFideId "1121219"]
[BlackFideId "24133795"]
[WhiteElo "2821"]
[BlackElo "3013"]
[WhiteTeam "POL"]
[BlackTeam "SRB"]
[WhiteClock "0:00:00"]
[BlackClock "0:00:22"]

1. e4 {[%clk 0:03:00]}  c5 {[%clk 0:02:55]} 2. Nf3 {[%clk 0:03:01]}  d6 {[%clk 0:02:56]} 3. d4 {[%clk 0:03:01]}  cxd4 {[%clk 0:02:55]} 4. Nxd4 {[%clk 0:03:02]}  Nf6 {[%clk 0:02:56]} 5. Nc3 {[%clk 0:03:02]}  a6 {[%clk 0:02:57]} 6. h4 {[%clk 0:03:01]}  e5 {[%clk 0:02:56]} 7. Nb3 {[%clk 0:03:01]}  Be7 {[%clk 0:02:55]} 8. Bg5 {[%clk 0:03:01]}  Nbd7 {[%clk 0:02:56]} 9. a4 {[%clk 0:02:56]}  Qc7 {[%clk 0:02:55]} 10. a5 {[%clk 0:02:48]}  h6 {[%clk 0:02:53]} 11. Be3 {[%clk 0:02:42]}  Nf8 {[%clk 0:02:50]} 12. f3 {[%clk 0:02:40]}  Be6 {[%clk 0:02:49]} 13. Nd5 {[%clk 0:02:32]}  Nxd5 {[%clk 0:02:49]} 14. exd5 {[%clk 0:02:33]}  Bf5 {[%clk 0:02:49]} 15. c4 {[%clk 0:02:29]}  Nd7 {[%clk 0:02:50]} 16. Bd3 {[%clk 0:02:23]}  Bxd3 {[%clk 0:02:48]} 17. Qxd3 {[%clk 0:02:24]}  O-O {[%clk 0:02:48]} 18. g4 {[%clk 0:02:22]}  e4 {[%clk 0:02:37]} 19. Qxe4 {[%clk 0:02:17]}  Rae8 {[%clk 0:02:34]} 20. g5 {[%clk 0:01:23]}  Bxg5 {[%clk 0:02:32]} 21. hxg5 {[%clk 0:01:22]}  Rxe4 {[%clk 0:02:32]} 22. fxe4 {[%clk 0:01:23]}  Qxc4 {[%clk 0:02:32]} 23. Nd2 {[%clk 0:01:23]}  Qd3 {[%clk 0:02:31]} 24. Ra3 {[%clk 0:01:21]}  Qb5 {[%clk 0:02:28]} 25. Rb3 {[%clk 0:01:14]}  Qxa5 {[%clk 0:02:27]} 26. Ke2 {[%clk 0:01:11]}  hxg5 {[%clk 0:02:19]} 27. Rxb7 {[%clk 0:01:10]}  Ne5 {[%clk 0:02:14]} 28. Bxg5 {[%clk 0:01:08]}  Qc5 {[%clk 0:02:08]} 29. Rb3 {[%clk 0:00:59]}  f6 {[%clk 0:02:05]} 30. Be3 {[%clk 0:00:57]}  Qc8 {[%clk 0:02:05]} 31. Rg1 {[%clk 0:00:56]}  Qh3 {[%clk 0:02:04]} 32. Rb7 {[%clk 0:00:54]}  Qh5+ {[%clk 0:02:01]} 33. Kf2 {[%clk 0:00:42]}  Nd3+ {[%clk 0:02:00]} 34. Kg3 {[%clk 0:00:38]}  f5 {[%clk 0:01:39]} 35. Bd4 {[%clk 0:00:38]}  Qg4+ {[%clk 0:01:10]} 36. Kh2 {[%clk 0:00:36]}  Qf4+ {[%clk 0:01:08]} 37. Kh3 {[%clk 0:00:26]}  Qh6+ {[%clk 0:01:07]} 38. Kg3 {[%clk 0:00:27]}  Qg5+ {[%clk 0:01:04]} 39. Kh2 {[%clk 0:00:16]}  Qxd2+ {[%clk 0:01:00]} 40. Rg2 {[%clk 0:00:17]}  Qh6+ {[%clk 0:00:57]} 41. Kg1 {[%clk 0:00:17]}  Qc1+ {[%clk 0:00:45]} 42. Kh2 {[%clk 0:00:17]}  Rf7 {[%clk 0:00:45]} 43. Bxg7 {[%clk 0:00:12]}  Qf4+ {[%clk 0:00:42]} 44. Kg1 {[%clk 0:00:11]}  Qc1+ {[%clk 0:00:22]} 45. Kh2 {[%clk 0:00:11]}  Rxb7 {[%clk 0:00:21]} 46. Bh6+ {[%clk 0:00:11]}  Kf7 {[%clk 0:00:22]} 47. Bxc1 {[%clk 0:00:09]}  Nxc1 {[%clk 0:00:22]} 48. exf5 {[%clk 0:00:09]}  Nd3 {[%clk 0:00:23]} 49. Rg3 {[%clk 0:00:09]}  Rxb2+ {[%clk 0:00:22]} 50. Kg1 {[%clk 0:00:09]}  Ne5 {[%clk 0:00:22]} 51. Ra3 {[%clk 0:00:10]}  Rb6 {[%clk 0:00:22]} 52. Rh3 {[%clk 0:00:08]}  Kf6 {[%clk 0:00:23]} 53. Rh5 {[%clk 0:00:08]}  a5 {[%clk 0:00:23]} 54. Kf2 {[%clk 0:00:07]}  a4 {[%clk 0:00:23]} 55. Rh8 {[%clk 0:00:07]}  Ra6 {[%clk 0:00:24]} 56. Ke3 {[%clk 0:00:06]}  a3 {[%clk 0:00:24]} 57. Rf8+ {[%clk 0:00:06]}  Kg5 {[%clk 0:00:23]} 58. Rg8+ {[%clk 0:00:06]}  Kxf5 {[%clk 0:00:23]} 59. Rg1 {[%clk 0:00:06]}  a2 {[%clk 0:00:23]} 60. Rf1+ {[%clk 0:00:06]}  Kg5 {[%clk 0:00:23]} 61. Ra1 {[%clk 0:00:07]}  Ra4 {[%clk 0:00:23]} 62. Rg1+ {[%clk 0:00:05]}  Ng4+ {[%clk 0:00:22]} 63. Kf3 {[%clk 0:00:00]}  a1=Q {[%clk 0:00:22]} 0-1

[Event "January 2 Late 2024"]
[Site "https://www.chess.com"]
[Date "2024.01.02"]
[Round "4"]
[White "Kramnik, Vladimir"]
[Black "Araujo Sanchez, Josue"]
[Result "1/2-1/2"]
[Board "18"]
[TimeControl "180+1"]
[WhiteFideId "4101588"]
[BlackFideId "6416896"]
[WhiteElo "2988"]
[BlackElo "2699"]
[WhiteTeam "RUS"]
[BlackTeam "DOM"]
[WhiteClock "0:00:03"]
[BlackClock "0:00:15"]

1. c4 {[%clk 0:03:00]}  g6 {[%clk 0:02:57]} 2. Nc3 {[%clk 0:02:59]}  Bg7 {[%clk 0:02:58]} 3. d4 {[%clk 0:02:59]}  d6 {[%clk 0:02:59]} 4. e4 {[%clk 0:02:58]}  Nd7 {[%clk 0:02:59]} 5. Nge2 {[%clk 0:02:51]}  c5 {[%clk 0:02:58]} 6. Be3 {[%clk 0:02:49]}  Ngf6 {[%clk 0:02:57]} 7. f3 {[%clk 0:02:47]}  O-O {[%clk 0:02:52]} 8. Qd2 {[%clk 0:02:47]}  cxd4 {[%clk 0:02:51]} 9. Nxd4 {[%clk 0:02:47]}  a6 {[%clk 0:02:51]} 10. Be2 {[%clk 0:02:45]}  Ne5 {[%clk 0:02:44]} 11. O-O {[%clk 0:02:39]}  Bd7 {[%clk 0:02:44]} 12. b3 {[%clk 0:02:32]}  Re8 {[%clk 0:02:33]} 13. Rfd1 {[%clk 0:02:30]}  Qa5 {[%clk 0:02:32]} 14. Rac1 {[%clk 0:02:27]}  h5 {[%clk 0:02:24]} 15. Qe1 {[%clk 0:02:21]}  Rec8 {[%clk 0:02:15]} 16. Kh1 {[%clk 0:02:18]}  b5 {[%clk 0:01:49]} 17. f4 {[%clk 0:01:53]}  Neg4 {[%clk 0:01:40]} 18. Bg1 {[%clk 0:01:51]}  e5 {[%clk 0:01:32]} 19. fxe5 {[%clk 0:01:46]}  Nxe5 {[%clk 0:01:26]} 20. cxb5 {[%clk 0:01:25]}  axb5 {[%clk 0:01:24]} 21. Ndxb5 {[%clk 0:01:09]}  Bxb5 {[%clk 0:01:16]} 22. Nxb5 {[%clk 0:01:09]}  Rxc1 {[%clk 0:00:51]} 23. Rxc1 {[%clk 0:01:09]}  Qxa2 {[%clk 0:00:42]} 24. Nxd6 {[%clk 0:00:58]}  Qxb3 {[%clk 0:00:39]} 25. h3 {[%clk 0:00:55]}  Qe6 {[%clk 0:00:37]} 26. Nb5 {[%clk 0:00:44]}  Rc8 {[%clk 0:00:31]} 27. Rxc8+ {[%clk 0:00:39]}  Qxc8 {[%clk 0:00:32]} 28. Bf1 {[%clk 0:00:38]}  Qc2 {[%clk 0:00:23]} 29. Nc3 {[%clk 0:00:32]}  Nd3 {[%clk 0:00:16]} 30. Bxd3 {[%clk 0:00:31]}  Qxd3 {[%clk 0:00:17]} 31. e5 {[%clk 0:00:31]}  Nd5 {[%clk 0:00:17]} 32. Nxd5 {[%clk 0:00:22]}  Qxd5 {[%clk 0:00:18]} 33. Bh2 {[%clk 0:00:22]}  Qe6 {[%clk 0:00:14]} 34. Bg3 {[%clk 0:00:17]}  Qb3 {[%clk 0:00:13]} 35. Kh2 {[%clk 0:00:17]}  Qd5 {[%clk 0:00:14]} 36. Qe3 {[%clk 0:00:16]}  Kh7 {[%clk 0:00:14]} 37. Bf4 {[%clk 0:00:16]}  Kg8 {[%clk 0:00:13]} 38. Qc3 {[%clk 0:00:15]}  Qa2 {[%clk 0:00:12]} 39. Qc8+ {[%clk 0:00:14]}  Kh7 {[%clk 0:00:12]} 40. Qd7 {[%clk 0:00:13]}  Qc4 {[%clk 0:00:12]} 41. Qd2 {[%clk 0:00:10]}  Qe4 {[%clk 0:00:12]} 42. Kh1 {[%clk 0:00:06]}  Bxe5 {[%clk 0:00:12]} 43. Bxe5 {[%clk 0:00:06]}  Qxe5 {[%clk 0:00:13]} 44. Qf2 {[%clk 0:00:06]}  Qa1+ {[%clk 0:00:13]} 45. Kh2 {[%clk 0:00:05]}  Qe5+ {[%clk 0:00:14]} 46. Kh1 {[%clk 0:00:06]}  Kg7 {[%clk 0:00:14]} 47. Qf3 {[%clk 0:00:06]}  Qf6 {[%clk 0:00:15]} 48. Qe4 {[%clk 0:00:06]}  Qa1+ {[%clk 0:00:15]} 49. Kh2 {[%clk 0:00:05]}  Qa6 {[%clk 0:00:15]} 50. Kh1 {[%clk 0:00:05]}  Qf6 {[%clk 0:00:16]} 51. Kh2 {[%clk 0:00:05]}  h4 {[%clk 0:00:16]} 52. Qe2 {[%clk 0:00:05]}  Qf4+ {[%clk 0:00:16]} 53. Kh1 {[%clk 0:00:05]}  g5 {[%clk 0:00:17]} 54. Qb5 {[%clk 0:00:04]}  Kg6 {[%clk 0:00:18]} 55. Qc6+ {[%clk 0:00:04]}  f6 {[%clk 0:00:18]} 56. Qe8+ {[%clk 0:00:04]}  Kf5 {[%clk 0:00:18]} 57. Qd7+ {[%clk 0:00:04]}  Ke5 {[%clk 0:00:19]} 58. Qc7+ {[%clk 0:00:04]}  Ke4 {[%clk 0:00:20]} 59. Qc6+ {[%clk 0:00:04]}  Ke3 {[%clk 0:00:21]} 60. Qc3+ {[%clk 0:00:04]}  Kf2 {[%clk 0:00:20]} 61. Qc2+ {[%clk 0:00:04]}  Kg3 {[%clk 0:00:19]} 62. Qd3+ {[%clk 0:00:03]}  Kf2 {[%clk 0:00:19]} 63. Qc2+ {[%clk 0:00:03]}  Ke1 {[%clk 0:00:20]} 64. Qb1+ {[%clk 0:00:03]}  Ke2 {[%clk 0:00:20]} 65. Qb5+ {[%clk 0:00:04]}  Kd1 {[%clk 0:00:19]} 66. Qd5+ {[%clk 0:00:04]}  Ke2 {[%clk 0:00:19]} 67. Qb5+ {[%clk 0:00:04]}  Ke1 {[%clk 0:00:18]} 68. Qa5+ {[%clk 0:00:04]}  Kf2 {[%clk 0:00:18]} 69. Qc5+ {[%clk 0:00:04]}  Qe3 {[%clk 0:00:17]} 70. Qf5+ {[%clk 0:00:03]}  Qf4 {[%clk 0:00:15]} 71. Qc2+ {[%clk 0:00:03]} 1/2-1/2

[Event "January 2 Late 2024"]
[Site "https://www.chess.com"]
[Date "2024.01.02"]
[Round "4"]
[White "Adewumi, Tanitoluwa"]
[Black "Rasulov, Vugar"]
[Result "1-0"]
[Board "19"]
[TimeControl "180+1"]
[WhiteFideId "30966396"]
[BlackFideId "13402390"]
[WhiteElo "2694"]
[BlackElo "2983"]
[WhiteTeam "USA"]
[BlackTeam "AZE"]
[WhiteClock "0:00:07"]
[BlackClock "0:00:04"]

1. e4 {[%clk 0:03:00]}  c5 {[%clk 0:02:59]} 2. Nf3 {[%clk 0:03:00]}  Nc6 {[%clk 0:02:58]} 3. Bb5 {[%clk 0:02:55]}  d6 {[%clk 0:02:58]} 4. O-O {[%clk 0:02:52]}  Bd7 {[%clk 0:02:58]} 5. Re1 {[%clk 0:02:52]}  a6 {[%clk 0:02:56]} 6. Bf1 {[%clk 0:02:50]}  Bg4 {[%clk 0:02:53]} 7. c3 {[%clk 0:02:49]}  e5 {[%clk 0:02:48]} 8. h3 {[%clk 0:02:43]}  Bxf3 {[%clk 0:02:48]} 9. Qxf3 {[%clk 0:02:43]}  g6 {[%clk 0:02:40]} 10. Bc4 {[%clk 0:02:38]}  Qf6 {[%clk 0:02:34]} 11. Qg3 {[%clk 0:02:32]}  Bh6 {[%clk 0:02:32]} 12. d3 {[%clk 0:02:09]}  Bxc1 {[%clk 0:02:31]} 13. Rxc1 {[%clk 0:02:10]}  Qf4 {[%clk 0:02:26]} 14. Qxf4 {[%clk 0:02:05]}  exf4 {[%clk 0:02:27]} 15. Nd2 {[%clk 0:01:54]}  Nf6 {[%clk 0:02:28]} 16. a4 {[%clk 0:01:38]}  g5 {[%clk 0:02:17]} 17. Bb3 {[%clk 0:01:25]}  Ke7 {[%clk 0:02:05]} 18. Nc4 {[%clk 0:01:18]}  h5 {[%clk 0:01:51]} 19. Re1 {[%clk 0:01:10]}  Nd7 {[%clk 0:01:41]} 20. a5 {[%clk 0:01:07]}  g4 {[%clk 0:01:40]} 21. h4 {[%clk 0:01:03]}  Rad8 {[%clk 0:01:27]} 22. Rad1 {[%clk 0:01:00]}  Nde5 {[%clk 0:01:19]} 23. Nxe5 {[%clk 0:00:41]}  dxe5 {[%clk 0:01:20]} 24. Bd5 {[%clk 0:00:41]}  Rd6 {[%clk 0:01:18]} 25. Ra1 {[%clk 0:00:32]}  Rhd8 {[%clk 0:01:17]} 26. Ra4 {[%clk 0:00:32]}  R8d7 {[%clk 0:01:06]} 27. Rc4 {[%clk 0:00:31]}  Nxa5 {[%clk 0:00:59]} 28. Rxc5 {[%clk 0:00:31]}  b6 {[%clk 0:00:50]} 29. Rc8 {[%clk 0:00:31]}  Rd8 {[%clk 0:00:42]} 30. Rxd8 {[%clk 0:00:27]}  Kxd8 {[%clk 0:00:43]} 31. b4 {[%clk 0:00:27]}  Nc6 {[%clk 0:00:43]} 32. Ra1 {[%clk 0:00:27]}  a5 {[%clk 0:00:41]} 33. bxa5 {[%clk 0:00:12]}  Nxa5 {[%clk 0:00:40]} 34. Kf1 {[%clk 0:00:13]}  Ke7 {[%clk 0:00:38]} 35. Ke2 {[%clk 0:00:13]}  f5 {[%clk 0:00:36]} 36. Rb1 {[%clk 0:00:11]}  fxe4 {[%clk 0:00:29]} 37. Bxe4 {[%clk 0:00:11]}  Nc6 {[%clk 0:00:28]} 38. Rb5 {[%clk 0:00:10]}  Kf6 {[%clk 0:00:27]} 39. Kd2 {[%clk 0:00:09]}  Nd8 {[%clk 0:00:28]} 40. g3 {[%clk 0:00:08]}  Ne6 {[%clk 0:00:27]} 41. Kc2 {[%clk 0:00:07]}  Nc5 {[%clk 0:00:25]} 42. Rb4 {[%clk 0:00:05]}  f3 {[%clk 0:00:23]} 43. Kd2 {[%clk 0:00:03]}  Na6 {[%clk 0:00:18]} 44. Rb5 {[%clk 0:00:03]}  Nc5 {[%clk 0:00:18]} 45. Rb4 {[%clk 0:00:02]}  b5 {[%clk 0:00:14]} 46. Ke3 {[%clk 0:00:02]}  Ra6 {[%clk 0:00:15]} 47. Rxb5 {[%clk 0:00:02]}  Ra2 {[%clk 0:00:16]} 48. Bxf3 {[%clk 0:00:01]}  Nb3 {[%clk 0:00:13]} 49. Bd5 {[%clk 0:00:02]}  Ra5 {[%clk 0:00:10]} 50. Rxa5 {[%clk 0:00:01]}  Nxa5 {[%clk 0:00:11]} 51. Ke4 {[%clk 0:00:02]}  Ke7 {[%clk 0:00:10]} 52. Kxe5 {[%clk 0:00:03]}  Kd7 {[%clk 0:00:11]} 53. c4 {[%clk 0:00:03]}  Nb3 {[%clk 0:00:11]} 54. d4 {[%clk 0:00:03]}  Nc1 {[%clk 0:00:10]} 55. Kf4 {[%clk 0:00:04]}  Kd6 {[%clk 0:00:09]} 56. Kg5 {[%clk 0:00:05]}  Nd3 {[%clk 0:00:09]} 57. Kxh5 {[%clk 0:00:06]}  Nxf2 {[%clk 0:00:08]} 58. Kg5 {[%clk 0:00:06]}  Nd1 {[%clk 0:00:07]} 59. Kxg4 {[%clk 0:00:06]}  Ne3+ {[%clk 0:00:07]} 60. Kg5 {[%clk 0:00:07]}  Nc2 {[%clk 0:00:07]} 61. h5 {[%clk 0:00:07]}  Nxd4 {[%clk 0:00:08]} 62. h6 {[%clk 0:00:07]}  Ke7 {[%clk 0:00:04]} 63. h7 {[%clk 0:00:07]} 1-0

[Event "January 2 Late 2024"]
[Site "https://www.chess.com"]
[Date "2024.01.02"]
[Round "4"]
[White "Anton Guijarro, David"]
[Black "Lamaze, Simon"]
[Result "1-0"]
[Board "20"]
[TimeControl "180+1"]
[WhiteFideId "2285525"]
[BlackFideId "36069264"]
[WhiteElo "2978"]
[BlackElo "2651"]
[WhiteTeam "ESP"]
[BlackTeam "FRA"]
[WhiteClock "0:00:48"]
[BlackClock "0:00:25"]

1. Nf3 {[%clk 0:03:00]}  Nf6 {[%clk 0:02:59]} 2. b3 {[%clk 0:03:00]}  d5 {[%clk 0:02:59]} 3. Bb2 {[%clk 0:03:00]}  c5 {[%clk 0:02:57]} 4. e3 {[%clk 0:03:00]}  Nc6 {[%clk 0:02:56]} 5. Bb5 {[%clk 0:03:00]}  Bd7 {[%clk 0:02:53]} 6. O-O {[%clk 0:03:00]}  e6 {[%clk 0:02:53]} 7. d3 {[%clk 0:03:00]}  Bd6 {[%clk 0:02:53]} 8. Nbd2 {[%clk 0:02:59]}  Qc7 {[%clk 0:02:51]} 9. c4 {[%clk 0:02:57]}  a6 {[%clk 0:02:50]} 10. Bxc6 {[%clk 0:02:54]}  Bxc6 {[%clk 0:02:51]} 11. cxd5 {[%clk 0:02:54]}  Nxd5 {[%clk 0:02:44]} 12. Ne4 {[%clk 0:02:50]}  f6 {[%clk 0:02:41]} 13. Rc1 {[%clk 0:02:49]}  b6 {[%clk 0:02:22]} 14. Nxd6+ {[%clk 0:02:48]}  Qxd6 {[%clk 0:02:23]} 15. d4 {[%clk 0:02:48]}  cxd4 {[%clk 0:02:21]} 16. Nxd4 {[%clk 0:02:40]}  Bb7 {[%clk 0:02:13]} 17. Qh5+ {[%clk 0:02:39]}  Kf8 {[%clk 0:01:39]} 18. Rfd1 {[%clk 0:02:30]}  Re8 {[%clk 0:01:31]} 19. Ne2 {[%clk 0:02:07]}  Qe7 {[%clk 0:01:15]} 20. e4 {[%clk 0:02:06]}  Nb4 {[%clk 0:01:15]} 21. Rc4 {[%clk 0:01:48]}  e5 {[%clk 0:01:02]} 22. Ba3 {[%clk 0:01:32]}  a5 {[%clk 0:01:02]} 23. Rdc1 {[%clk 0:01:23]}  Qf7 {[%clk 0:00:42]} 24. Qxf7+ {[%clk 0:01:21]}  Kxf7 {[%clk 0:00:43]} 25. Bxb4 {[%clk 0:01:20]}  Ba6 {[%clk 0:00:39]} 26. Rc7+ {[%clk 0:01:20]}  Kg6 {[%clk 0:00:39]} 27. Ng3 {[%clk 0:01:11]}  axb4 {[%clk 0:00:37]} 28. Nf5 {[%clk 0:01:11]}  Rhg8 {[%clk 0:00:38]} 29. Ne7+ {[%clk 0:01:10]}  Rxe7 {[%clk 0:00:38]} 30. Rxe7 {[%clk 0:01:11]}  Bd3 {[%clk 0:00:39]} 31. f3 {[%clk 0:01:11]}  Kg5 {[%clk 0:00:35]} 32. Rcc7 {[%clk 0:01:09]}  g6 {[%clk 0:00:35]} 33. Rxh7 {[%clk 0:01:05]}  Ra8 {[%clk 0:00:35]} 34. Ra7 {[%clk 0:00:53]}  Rc8 {[%clk 0:00:31]} 35. h4+ {[%clk 0:00:47]}  Kf4 {[%clk 0:00:28]} 36. Rhc7 {[%clk 0:00:48]}  Rh8 {[%clk 0:00:26]} 37. Kf2 {[%clk 0:00:48]}  f5 {[%clk 0:00:25]} 38. g3# {[%clk 0:00:48]} 1-0

[Event "January 2 Late 2024"]
[Site "https://www.chess.com"]
[Date "2024.01.02"]
[Round "4"]
[White "Lewicki, Miroslaw"]
[Black "Bok, Benjamin"]
[Result "1-0"]
[Board "22"]
[TimeControl "180+1"]
[WhiteFideId "1113380"]
[BlackFideId "1017063"]
[WhiteElo "2546"]
[BlackElo "2960"]
[WhiteTeam "POL"]
[BlackTeam "NED"]
[WhiteClock "0:00:04"]
[BlackClock "0:00:00"]

1. e4 {[%clk 0:03:00]}  c5 {[%clk 0:02:58]} 2. Nf3 {[%clk 0:03:01]}  d6 {[%clk 0:02:58]} 3. d4 {[%clk 0:03:00]}  cxd4 {[%clk 0:02:58]} 4. Nxd4 {[%clk 0:03:01]}  Nf6 {[%clk 0:02:59]} 5. Nc3 {[%clk 0:03:02]}  a6 {[%clk 0:02:59]} 6. Be2 {[%clk 0:03:01]}  e5 {[%clk 0:02:59]} 7. Nb3 {[%clk 0:03:02]}  Be7 {[%clk 0:03:00]} 8. O-O {[%clk 0:03:00]}  O-O {[%clk 0:03:00]} 9. Be3 {[%clk 0:02:58]}  Be6 {[%clk 0:03:00]} 10. f4 {[%clk 0:02:56]}  exf4 {[%clk 0:02:57]} 11. Bxf4 {[%clk 0:02:57]}  Nc6 {[%clk 0:02:57]} 12. Kh1 {[%clk 0:02:57]}  Rc8 {[%clk 0:02:53]} 13. Nd4 {[%clk 0:02:43]}  Nxd4 {[%clk 0:02:37]} 14. Qxd4 {[%clk 0:02:44]}  d5 {[%clk 0:02:36]} 15. e5 {[%clk 0:02:17]}  Bc5 {[%clk 0:01:36]} 16. Qd3 {[%clk 0:02:15]}  Nd7 {[%clk 0:01:30]} 17. Rad1 {[%clk 0:02:08]}  Nb6 {[%clk 0:01:27]} 18. Qg3 {[%clk 0:02:02]}  Kh8 {[%clk 0:01:09]} 19. Ne4 {[%clk 0:02:01]}  Be7 {[%clk 0:01:07]} 20. Ng5 {[%clk 0:01:50]}  Bf5 {[%clk 0:00:47]} 21. Bd3 {[%clk 0:01:07]}  Bxd3 {[%clk 0:00:37]} 22. Rxd3 {[%clk 0:01:07]}  Rxc2 {[%clk 0:00:30]} 23. Nxh7 {[%clk 0:01:07]}  Kxh7 {[%clk 0:00:22]} 24. Qh3+ {[%clk 0:01:06]}  Kg8 {[%clk 0:00:22]} 25. Rg3 {[%clk 0:01:07]}  Rc6 {[%clk 0:00:17]} 26. Bh6 {[%clk 0:00:16]}  Rg6 {[%clk 0:00:14]} 27. e6 {[%clk 0:00:16]}  fxe6 {[%clk 0:00:10]} 28. Re1 {[%clk 0:00:11]}  Rff6 {[%clk 0:00:07]} 29. Bg5 {[%clk 0:00:07]}  Rf7 {[%clk 0:00:03]} 30. Bxe7 {[%clk 0:00:06]}  Rxg3 {[%clk 0:00:03]} 31. Bxd8 {[%clk 0:00:06]}  Rxh3 {[%clk 0:00:03]} 32. gxh3 {[%clk 0:00:07]}  Nc4 {[%clk 0:00:03]} 33. Rxe6 {[%clk 0:00:07]}  Rf2 {[%clk 0:00:04]} 34. b3 {[%clk 0:00:04]}  Nd2 {[%clk 0:00:03]} 35. Bc7 {[%clk 0:00:03]}  Nf3 {[%clk 0:00:03]} 36. Bg3 {[%clk 0:00:02]}  Rxa2 {[%clk 0:00:03]} 37. Rd6 {[%clk 0:00:02]}  d4 {[%clk 0:00:04]} 38. Rd7 {[%clk 0:00:02]}  b5 {[%clk 0:00:03]} 39. h4 {[%clk 0:00:02]}  Rb2 {[%clk 0:00:04]} 40. h5 {[%clk 0:00:03]}  Rxb3 {[%clk 0:00:04]} 41. h6 {[%clk 0:00:02]}  gxh6 {[%clk 0:00:04]} 42. Kg2 {[%clk 0:00:03]}  a5 {[%clk 0:00:04]} 43. Kh3 {[%clk 0:00:03]}  a4 {[%clk 0:00:04]} 44. Kg4 {[%clk 0:00:03]}  a3 {[%clk 0:00:03]} 45. Ra7 {[%clk 0:00:04]}  Nd2 {[%clk 0:00:02]} 46. Kf5 {[%clk 0:00:04]}  d3 {[%clk 0:00:02]} 47. Be5 {[%clk 0:00:04]}  Nc4 {[%clk 0:00:02]} 48. Bf6 {[%clk 0:00:04]}  Kf8 {[%clk 0:00:01]} 49. Ke6 {[%clk 0:00:04]}  Nb6 {[%clk 0:00:01]} 50. Rb7 {[%clk 0:00:04]}  Nc8 {[%clk 0:00:00]} 51. Rb8 {[%clk 0:00:04]} 1-0

[Event "January 2 Late 2024"]
[Site "https://www.chess.com"]
[Date "2024.01.02"]
[Round "4"]
[White "Kamsky, Gata"]
[Black "Sukandar, Irine Kharisma"]
[Result "1-0"]
[Board "23"]
[TimeControl "180+1"]
[WhiteFideId "2000024"]
[BlackFideId "7101937"]
[WhiteElo "2960"]
[BlackElo "2471"]
[WhiteTeam "USA"]
[BlackTeam "INA"]
[WhiteClock "0:01:06"]
[BlackClock "0:00:06"]

1. d4 {[%clk 0:02:56]}  Nf6 {[%clk 0:02:59]} 2. Bf4 {[%clk 0:02:55]}  b6 {[%clk 0:02:57]} 3. e3 {[%clk 0:02:54]}  Bb7 {[%clk 0:02:58]} 4. Nf3 {[%clk 0:02:53]}  e6 {[%clk 0:02:58]} 5. Nbd2 {[%clk 0:02:51]}  Be7 {[%clk 0:02:59]} 6. h3 {[%clk 0:02:51]}  O-O {[%clk 0:02:57]} 7. a4 {[%clk 0:02:51]}  a6 {[%clk 0:02:56]} 8. Bd3 {[%clk 0:02:51]}  c5 {[%clk 0:02:56]} 9. O-O {[%clk 0:02:50]}  d6 {[%clk 0:02:56]} 10. Bh2 {[%clk 0:02:50]}  Nbd7 {[%clk 0:02:56]} 11. Re1 {[%clk 0:02:47]}  Rc8 {[%clk 0:02:51]} 12. c3 {[%clk 0:02:39]}  Re8 {[%clk 0:02:48]} 13. Qe2 {[%clk 0:02:37]}  Nb8 {[%clk 0:02:46]} 14. e4 {[%clk 0:02:36]}  cxd4 {[%clk 0:02:25]} 15. cxd4 {[%clk 0:02:35]}  g6 {[%clk 0:02:24]} 16. Bf4 {[%clk 0:02:33]}  Bf8 {[%clk 0:02:24]} 17. Rad1 {[%clk 0:01:58]}  Bg7 {[%clk 0:02:21]} 18. e5 {[%clk 0:01:51]}  Nd5 {[%clk 0:02:13]} 19. Bg5 {[%clk 0:01:51]}  Qd7 {[%clk 0:02:13]} 20. Ne4 {[%clk 0:01:49]}  dxe5 {[%clk 0:02:08]} 21. dxe5 {[%clk 0:01:48]}  h6 {[%clk 0:02:05]} 22. Bd2 {[%clk 0:01:39]}  Qxa4 {[%clk 0:01:37]} 23. Nd6 {[%clk 0:01:36]}  Ba8 {[%clk 0:01:22]} 24. Nxe8 {[%clk 0:01:33]}  Rxe8 {[%clk 0:01:15]} 25. Ra1 {[%clk 0:01:28]}  Qc6 {[%clk 0:01:13]} 26. Bxa6 {[%clk 0:01:26]}  Nxa6 {[%clk 0:01:03]} 27. Qxa6 {[%clk 0:01:26]}  Qc2 {[%clk 0:01:03]} 28. Qa4 {[%clk 0:01:23]}  Qxa4 {[%clk 0:00:50]} 29. Rxa4 {[%clk 0:01:22]}  Bc6 {[%clk 0:00:50]} 30. Ra7 {[%clk 0:01:21]}  Ne7 {[%clk 0:00:41]} 31. Nd4 {[%clk 0:01:16]}  Bd5 {[%clk 0:00:40]} 32. Bb4 {[%clk 0:01:15]}  Nc6 {[%clk 0:00:37]} 33. Nxc6 {[%clk 0:01:14]}  Bxc6 {[%clk 0:00:37]} 34. Bd6 {[%clk 0:01:15]}  b5 {[%clk 0:00:35]} 35. Rc1 {[%clk 0:01:13]}  Bd5 {[%clk 0:00:35]} 36. Rc5 {[%clk 0:01:11]}  Bc4 {[%clk 0:00:28]} 37. Rcc7 {[%clk 0:01:10]}  h5 {[%clk 0:00:18]} 38. Rxf7 {[%clk 0:01:09]}  Bh8 {[%clk 0:00:16]} 39. Rf6 {[%clk 0:01:07]}  Bxf6 {[%clk 0:00:14]} 40. exf6 {[%clk 0:01:07]}  e5 {[%clk 0:00:14]} 41. Rg7+ {[%clk 0:01:05]}  Kh8 {[%clk 0:00:06]} 42. f7 {[%clk 0:01:06]} 1-0